{"text_format":"3","workbook":"xlsx","n_sheets":7,"sheets":["Monday","Tuesday","Wednesday","Thursday","Friday","Saturday","Sunday"],"not_rendered":{"defined_names":21},"read":"whole","date_system":"1900"}

{"sheet":"Monday","index":0,"n_rows":10,"n_cols":13,"rows_kept":10,"merged":[[1,1,1,4],[1,8,1,9],[1,10,1,12],[2,1,2,4],[2,8,2,9],[2,10,2,12]]}
[]
[null,"SHIFT SCHEDULE",{"$nulls":6},"For the week of: ",null,"Date"]
[null,"Monday",{"$nulls":6},"Department name: ",null,"Name"]
[]
[null,"Employee","7:00 AM","8:00 AM","9:00 AM","10:00 AM","11:00 AM","12:00 PM","1:00 PM","2:00 PM","3:00 PM","Sick?","Total"]
[null,"Name 1","Manager","Manager","Manager","Manager","Manager","Manager","Manager","Manager","Manager",null,{"$f":"COUNTIF(Monday[[#This Row],[7:00 AM]:[3:00 PM]],\"*\")","v":9}]
[null,"Name 2",null,"Cashier","Cashier","Cashier","Cashier",{"$nulls":5},{"$f":"COUNTIF(Monday[[#This Row],[7:00 AM]:[3:00 PM]],\"*\")","v":4}]
[null,"Name 3",null,"Front Desk","Front Desk","Front Desk","Front Desk","Front Desk","Front Desk","Front Desk",null,null,{"$f":"COUNTIF(Monday[[#This Row],[7:00 AM]:[3:00 PM]],\"*\")","v":7}]
[null,"Name 4",null,"Front Desk","Front Desk","Front Desk","Front Desk","Front Desk","Front Desk","Front Desk",null,null,{"$f":"COUNTIF(Monday[[#This Row],[7:00 AM]:[3:00 PM]],\"*\")","v":7}]
[null,"Name 5",{"$nulls":9},"Sick",{"$f":"COUNTIF(Monday[[#This Row],[7:00 AM]:[3:00 PM]],\"*\")","v":0}]

{"sheet":"Tuesday","index":1,"n_rows":10,"n_cols":13,"rows_kept":10,"merged":[[1,1,1,4],[1,8,1,9],[1,10,1,12],[2,1,2,4],[2,8,2,9],[2,10,2,12]]}
[]
[null,"SHIFT SCHEDULE",{"$nulls":6},"For the week of: ",null,"Date"]
[null,"Tuesday",{"$nulls":6},"Department name: ",null,"Name"]
[]
[null,"Employee","7:00 AM","8:00 AM","9:00 AM","10:00 AM","11:00 AM","12:00 PM","1:00 PM","2:00 PM","3:00 PM","Sick?","Total"]
[null,"Name 1","Manager","Manager","Manager","Manager","Manager","Manager","Manager","Manager","Manager",null,{"$f":"COUNTIF(Tuesday[[#This Row],[7:00 AM]:[3:00 PM]],\"*\")","v":9}]
[null,"Name 2",null,"Cashier","Cashier","Cashier","Cashier",{"$nulls":5},{"$f":"COUNTIF(Tuesday[[#This Row],[7:00 AM]:[3:00 PM]],\"*\")","v":4}]
[null,"Name 3",null,"Front Desk","Front Desk","Front Desk","Front Desk","Front Desk","Front Desk","Front Desk",null,null,{"$f":"COUNTIF(Tuesday[[#This Row],[7:00 AM]:[3:00 PM]],\"*\")","v":7}]
[null,"Name 4",null,"Front Desk","Front Desk","Front Desk","Front Desk","Front Desk","Front Desk","Front Desk",null,null,{"$f":"COUNTIF(Tuesday[[#This Row],[7:00 AM]:[3:00 PM]],\"*\")","v":7}]
[null,"Name 5",{"$nulls":9},"Sick",{"$f":"COUNTIF(Tuesday[[#This Row],[7:00 AM]:[3:00 PM]],\"*\")","v":0}]

{"sheet":"Wednesday","index":2,"n_rows":10,"n_cols":13,"rows_kept":10,"merged":[[1,1,1,4],[1,8,1,9],[1,10,1,12],[2,1,2,4],[2,8,2,9],[2,10,2,12]]}
[]
[null,"SHIFT SCHEDULE",{"$nulls":6},"For the week of: ",null,"Date"]
[null,"Wednesday",{"$nulls":6},"Department name: ",null,"Name"]
[]
[null,"Employee","7:00 AM","8:00 AM","9:00 AM","10:00 AM","11:00 AM","12:00 PM","1:00 PM","2:00 PM","3:00 PM","Sick?","Total"]
[null,"Name 1","Manager","Manager","Manager","Manager","Manager","Manager","Manager","Manager","Manager",null,{"$f":"COUNTIF(Wednesday[[#This Row],[7:00 AM]:[3:00 PM]],\"*\")","v":9}]
[null,"Name 2",null,"Cashier","Cashier","Cashier","Cashier",{"$nulls":5},{"$f":"COUNTIF(Wednesday[[#This Row],[7:00 AM]:[3:00 PM]],\"*\")","v":4}]
[null,"Name 3",null,"Front Desk","Front Desk","Front Desk","Front Desk","Front Desk","Front Desk","Front Desk",null,null,{"$f":"COUNTIF(Wednesday[[#This Row],[7:00 AM]:[3:00 PM]],\"*\")","v":7}]
[null,"Name 4",null,"Front Desk","Front Desk","Front Desk","Front Desk","Front Desk","Front Desk","Front Desk",null,null,{"$f":"COUNTIF(Wednesday[[#This Row],[7:00 AM]:[3:00 PM]],\"*\")","v":7}]
[null,"Name 5",{"$nulls":9},"Sick",{"$f":"COUNTIF(Wednesday[[#This Row],[7:00 AM]:[3:00 PM]],\"*\")","v":0}]

{"sheet":"Thursday","index":3,"n_rows":10,"n_cols":13,"rows_kept":10,"merged":[[1,1,1,4],[1,8,1,9],[1,10,1,12],[2,1,2,4],[2,8,2,9],[2,10,2,12]]}
[]
[null,"SHIFT SCHEDULE",{"$nulls":6},"For the week of: ",null,"Date"]
[null,"Thursday",{"$nulls":6},"Department name: ",null,"Name"]
[]
[null,"Employee","7:00 AM","8:00 AM","9:00 AM","10:00 AM","11:00 AM","12:00 PM","1:00 PM","2:00 PM","3:00 PM","Sick?","Total"]
[null,"Name 1","Manager","Manager","Manager","Manager","Manager","Manager","Manager","Manager","Manager",null,{"$f":"COUNTIF(Thursday[[#This Row],[7:00 AM]:[3:00 PM]],\"*\")","v":9}]
[null,"Name 2",null,"Cashier","Cashier","Cashier","Cashier",{"$nulls":5},{"$f":"COUNTIF(Thursday[[#This Row],[7:00 AM]:[3:00 PM]],\"*\")","v":4}]
[null,"Name 3",null,"Front Desk","Front Desk","Front Desk","Front Desk","Front Desk","Front Desk","Front Desk",null,null,{"$f":"COUNTIF(Thursday[[#This Row],[7:00 AM]:[3:00 PM]],\"*\")","v":7}]
[null,"Name 4",null,"Front Desk","Front Desk","Front Desk","Front Desk","Front Desk","Front Desk","Front Desk",null,null,{"$f":"COUNTIF(Thursday[[#This Row],[7:00 AM]:[3:00 PM]],\"*\")","v":7}]
[null,"Name 5",{"$nulls":9},"Sick",{"$f":"COUNTIF(Thursday[[#This Row],[7:00 AM]:[3:00 PM]],\"*\")","v":0}]

{"sheet":"Friday","index":4,"n_rows":10,"n_cols":13,"rows_kept":10,"merged":[[1,1,1,4],[1,8,1,9],[1,10,1,12],[2,1,2,4],[2,8,2,9],[2,10,2,12]]}
[]
[null,"SHIFT SCHEDULE",{"$nulls":6},"For the week of: ",null,"Date"]
[null,"Friday",{"$nulls":6},"Department name: ",null,"Name"]
[]
[null,"Employee","7:00 AM","8:00 AM","9:00 AM","10:00 AM","11:00 AM","12:00 PM","1:00 PM","2:00 PM","3:00 PM","Sick?","Total"]
[null,"Name 1","Manager","Manager","Manager","Manager","Manager","Manager","Manager","Manager","Manager",null,{"$f":"COUNTIF(Friday[[#This Row],[7:00 AM]:[3:00 PM]],\"*\")","v":9}]
[null,"Name 2",null,"Cashier","Cashier","Cashier","Cashier",{"$nulls":5},{"$f":"COUNTIF(Friday[[#This Row],[7:00 AM]:[3:00 PM]],\"*\")","v":4}]
[null,"Name 3",null,"Front Desk","Front Desk","Front Desk","Front Desk","Front Desk","Front Desk","Front Desk",null,null,{"$f":"COUNTIF(Friday[[#This Row],[7:00 AM]:[3:00 PM]],\"*\")","v":7}]
[null,"Name 4",null,"Front Desk","Front Desk","Front Desk","Front Desk","Front Desk","Front Desk","Front Desk",null,null,{"$f":"COUNTIF(Friday[[#This Row],[7:00 AM]:[3:00 PM]],\"*\")","v":7}]
[null,"Name 5",{"$nulls":9},"Sick",{"$f":"COUNTIF(Friday[[#This Row],[7:00 AM]:[3:00 PM]],\"*\")","v":0}]

{"sheet":"Saturday","index":5,"n_rows":10,"n_cols":13,"rows_kept":10,"merged":[[1,1,1,4],[1,8,1,9],[1,10,1,12],[2,1,2,4],[2,8,2,9],[2,10,2,12]]}
[]
[null,"SHIFT SCHEDULE",{"$nulls":6},"For the week of: ",null,"Date"]
[null,"Saturday",{"$nulls":6},"Department name: ",null,"Name"]
[]
[null,"Employee","7:00 AM","8:00 AM","9:00 AM","10:00 AM","11:00 AM","12:00 PM","1:00 PM","2:00 PM","3:00 PM","Sick?","Total"]
[null,"Name 1","Manager","Manager","Manager","Manager","Manager","Manager","Manager","Manager","Manager",null,{"$f":"COUNTIF(Saturday[[#This Row],[7:00 AM]:[3:00 PM]],\"*\")","v":9}]
[null,"Name 2",null,"Cashier","Cashier","Cashier","Cashier",{"$nulls":5},{"$f":"COUNTIF(Saturday[[#This Row],[7:00 AM]:[3:00 PM]],\"*\")","v":4}]
[null,"Name 3",null,"Front Desk","Front Desk","Front Desk","Front Desk","Front Desk","Front Desk","Front Desk",null,null,{"$f":"COUNTIF(Saturday[[#This Row],[7:00 AM]:[3:00 PM]],\"*\")","v":7}]
[null,"Name 4",null,"Front Desk","Front Desk","Front Desk","Front Desk","Front Desk","Front Desk","Front Desk",null,null,{"$f":"COUNTIF(Saturday[[#This Row],[7:00 AM]:[3:00 PM]],\"*\")","v":7}]
[null,"Name 5",{"$nulls":9},"Sick",{"$f":"COUNTIF(Saturday[[#This Row],[7:00 AM]:[3:00 PM]],\"*\")","v":0}]

{"sheet":"Sunday","index":6,"n_rows":10,"n_cols":13,"rows_kept":10,"merged":[[1,1,1,4],[1,8,1,9],[1,10,1,12],[2,1,2,4],[2,8,2,9],[2,10,2,12]]}
[]
[null,"SHIFT SCHEDULE",{"$nulls":6},"For the week of: ",null,"Date"]
[null,"Sunday",{"$nulls":6},"Department name: ",null,"Name"]
[]
[null,"Employee","7:00 AM","8:00 AM","9:00 AM","10:00 AM","11:00 AM","12:00 PM","1:00 PM","2:00 PM","3:00 PM","Sick?","Total"]
[null,"Name 1","Manager","Manager","Manager","Manager","Manager","Manager","Manager","Manager","Manager",null,{"$f":"COUNTIF(Sunday[[#This Row],[7:00 AM]:[3:00 PM]],\"*\")","v":9}]
[null,"Name 2",null,"Cashier","Cashier","Cashier","Cashier",{"$nulls":5},{"$f":"COUNTIF(Sunday[[#This Row],[7:00 AM]:[3:00 PM]],\"*\")","v":4}]
[null,"Name 3",null,"Front Desk","Front Desk","Front Desk","Front Desk","Front Desk","Front Desk","Front Desk",null,null,{"$f":"COUNTIF(Sunday[[#This Row],[7:00 AM]:[3:00 PM]],\"*\")","v":7}]
[null,"Name 4",null,"Front Desk","Front Desk","Front Desk","Front Desk","Front Desk","Front Desk","Front Desk",null,null,{"$f":"COUNTIF(Sunday[[#This Row],[7:00 AM]:[3:00 PM]],\"*\")","v":7}]
[null,"Name 5",{"$nulls":9},"Sick",{"$f":"COUNTIF(Sunday[[#This Row],[7:00 AM]:[3:00 PM]],\"*\")","v":0}]